bitfinex/quotes_SOLUSD_20251002
["timestamp","ask_amount","ask_price","bid_price","bid_amount"]
[1759373672565,20.83104463,223.14,223.13,0.2]
[1759373672768,38.61693926,223.14,223.13,0.2]
[1759373673059,17.81693926,223.14,223.13,0.2]
[1759373674439,16.30228979,223.14,223.13,0.2]
[1759373674646,17.81693926,223.14,223.13,0.2]
[1759373674937,17.81693926,223.14,223.13,0.89]
[1759373674938,26.79614091,223.14,223.13,0.89]
[1759373675462,1.51464947,223.14,223.13,0.89]
[1759373675665,4.48068823,223.18,223.13,0.89]
[1759373675874,20.8,223.16,223.14,0.69]
[1759373676039,20.8,223.16,223.15,0.69]
[1759373676961,1.51464947,223.18,223.15,0.69]
[1759373677159,0.14216157,223.17,223.16,0.69]
[1759373678375,4.62305057,223.17,223.16,0.69]
[1759373678564,0.14216157,223.16,223.13,0.2]
[1759373678863,0.14216157,223.16,223.13,0.89]
[1759373679165,0.14216157,223.16,223.14,0.69]
[1759373679953,0.14216157,223.16,223.13,0.2]
[1759373680156,0.14216157,223.16,223.13,0.89]
[1759373681065,4.62345218,223.15,223.14,0.69]
[1759373681238,4.62345218,223.15,223.13,0.2]
[1759373681860,4.62345218,223.15,223.14,0.69]
[1759373682161,4.480889,223.17,223.14,0.69]
[1759373682551,4.480889,223.17,223.15,0.69]
[1759373683066,4.480889,223.17,223.13,0.2]
[1759373683249,4.480889,223.17,223.14,0.69]
[1759373683448,4.480889,223.17,223.15,0.69]
[1759373684153,15.68311152,223.17,223.14,0.69]
[1759373686367,17.88776099,223.17,223.13,0.89]
[1759373686562,2.20464947,223.16,223.13,0.2]
[1759373686756,17.19776099,223.17,223.13,0.2]
[1759373687079,17.19776099,223.17,223.13,0.89]
[1759373687377,17.88776099,223.17,223.13,0.89]
[1759373688257,0.14216157,223.16,223.13,0.89]
[1759373688870,0.14216157,223.16,223.13,0.2]
[1759373689067,0.14216157,223.16,223.13,0.89]
[1759373690282,4.48129061,223.15,223.13,0.89]
[1759373691580,3.01436994,223.19,223.14,0.69]
[1759373691772,3.01436994,223.19,223.13,0.2]
[1759373691773,5.17068823,223.18,223.13,0.2]
[1759373691971,6.6853377,223.18,223.13,0.2]
[1759373692155,0.69,223.17,223.13,0.2]
[1759373692352,5.9953377,223.18,223.14,0.69]
[1759373692656,4.48068823,223.18,223.15,0.69]
[1759373692856,5.17068823,223.18,223.13,0.89]
[1759373693171,5.17068823,223.18,223.14,0.69]
[1759373694170,4.48068823,223.18,223.13,0.2]
[1759373694382,0.66,223.17,223.13,0.2]
[1759373694587,1.51464947,223.15,223.13,0.2]
[1759373694894,0.66,223.14,223.13,0.2]
[1759373695268,2.17464947,223.14,223.13,0.2]
[1759373695765,5.14149144,223.14,223.13,0.2]
[1759373697660,15.68396593,223.16,223.13,0.2]
[1759373697862,0.66,223.14,223.13,0.2]
[1759373700572,6.79830248,223.14,223.13,0.2]
[1759373701080,17.67477769,223.14,223.13,0.2]
[1759373701387,17.81693926,223.14,223.13,0.2]
[1759373706376,18.67036807,223.14,223.13,1e-08]
[1759373707978,16.30228979,223.14,223.13,1e-08]
[1759373708186,18.67036807,223.14,223.13,1e-08]
[1759373709594,18.67036807,223.14,223.06,0.2]
[1759373709595,31.67647521,223.1,223.06,0.2]
[1759373709773,2.36807828,223.07,223.06,0.2]
[1759373710494,6.85097602,223.07,223.06,0.2]
[1759373712377,6.99313759,223.07,223.06,0.92]
[1759373713068,7.13529916,223.07,223.06,0.2]
[1759373713272,4.76722088,223.07,223.06,0.92]
[1759373713975,4.76722088,223.07,223.06,0.2]
[1759373715012,5.42722088,223.07,223.06,0.2]
[1759373715183,5.42722088,223.07,223.04,0.2]
[1759373715184,31.67647521,223.05,223.04,0.2]
[1759373715378,38.81217633,223.05,223.04,0.2]
[1759373715683,39.47217633,223.05,223.04,0.2]
[1759373716280,42.48666752,223.05,223.04,1e-08]
[1759373716583,42.48666752,223.05,222.99,0.2]
[1759373716584,11.16079835,223.0,222.99,0.2]
[1759373716806,13.52887663,223.0,222.99,0.2]
[1759373717101,14.18887663,223.0,222.99,0.2]
[1759373717984,18.67318156,223.0,222.99,0.2]
[1759373719886,18.67318156,223.0,222.99,1e-08]
[1759373720091,50.69318156,223.0,222.99,1e-08]
[1759373722285,16.30510328,223.0,222.99,1e-08]
[1759373722500,31.67647521,222.97,222.96,1e-08]
[1759373722691,68.43263177,222.97,222.96,1e-08]
[1759373722892,10.87647521,222.96,222.89,0.71]
[1759373723105,17.73066896,222.91,222.88,0.2]
[1759373723610,18.56283053,222.91,222.88,0.2]
[1759373724511,50.58283053,222.91,222.88,0.2]
[1759373725988,50.7249921,222.91,222.88,0.2]
[1759373728192,18.7049921,222.91,222.88,0.2]
[1759373728388,50.7249921,222.91,222.88,0.2]
[1759373728892,18.7049921,222.91,222.88,0.2]
[1759373729090,50.7249921,222.91,222.88,0.2]
[1759373730601,18.0149921,222.91,222.88,0.2]
[1759373730919,50.0349921,222.91,222.88,0.92]
[1759373731114,50.0349921,222.91,222.88,0.2]
[1759373731320,50.7249921,222.91,222.88,0.2]
[1759373732210,50.0349921,222.91,222.88,0.2]
[1759373733594,50.7249921,222.91,222.88,0.2]
[1759373733793,50.0349921,222.91,222.88,0.2]
[1759373735427,15.64691382,222.91,222.88,0.2]
[1759373735610,15.64691382,222.91,222.9,0.92]
[1759373736201,18.0149921,222.91,222.9,0.92]
[1759373737001,18.0149921,222.91,222.9,0.2]
[1759373737598,18.7049921,222.91,222.9,0.2]
[1759373737816,18.0149921,222.91,222.9,0.2]
[1759373738000,18.7049921,222.91,222.9,0.2]
[1759373738203,50.7249921,222.91,222.9,0.2]
[1759373738928,48.35691382,222.91,222.9,0.2]
[1759373739124,50.7249921,222.91,222.9,0.2]
[1759373739343,50.0349921,222.91,222.9,0.2]
[1759373739819,47.66691382,222.91,222.9,0.2]
[1759373740004,50.0349921,222.91,222.9,0.2]
[1759373740207,18.0149921,222.91,222.9,0.92]
[1759373740408,15.64691382,222.91,222.9,0.92]
[1759373740725,18.0149921,222.91,222.9,0.2]
[1759373741714,18.0149921,222.91,222.9,0.92]
[1759373742318,15.64691382,222.91,222.9,0.92]
[1759373742508,0.28432314,222.91,222.9,0.92]
[1759373742703,25.57043861,222.91,222.9,0.92]
[1759373744110,21.08432314,222.91,222.9,0.92]
[1759373744309,25.57043861,222.91,222.9,0.92]
[1759373749828,21.08432314,222.91,222.9,0.92]
[1759373751336,25.57043861,222.91,222.9,0.92]
[1759373751713,4.77043861,222.91,222.9,0.92]
[1759373752317,4.77043861,222.91,222.9,0.2]
[1759373753130,5.46043861,222.91,222.9,0.2]
[1759373753516,4.77043861,222.91,222.9,0.2]
[1759373755233,7.85851689,222.91,222.9,0.2]
[1759373755609,0.28432314,222.91,222.9,0.86]
[1759373755829,4.77043861,222.91,222.9,0.86]
[1759373756835,4.77043861,222.91,222.9,0.2]
[1759373757533,0.28432314,222.91,222.9,0.86]
[1759373758626,4.48566428,222.94,222.9,0.86]
[1759373758944,4.48566428,222.94,222.91,0.66]
[1759373760146,2.36807828,222.96,222.92,0.66]
[1759373760331,4.62750433,222.95,222.92,0.66]
[1759373760518,18.92885912,222.95,222.9,0.86]
[1759373760719,18.92885912,222.95,222.91,0.66]
[1759373761651,2.36807828,222.94,222.9,0.86]
[1759373761833,3.08807828,222.94,222.9,0.86]
[1759373762237,4.485713,222.93,222.9,0.86]
[1759373762829,4.485713,222.93,222.9,0.2]
[1759373763032,4.485713,222.93,222.91,0.66]
[1759373763233,4.485713,222.93,222.9,0.2]
[1759373763473,4.485713,222.93,222.9,0.86]
[1759373764460,0.14216157,222.93,222.9,0.86]
[1759373765836,4.62803464,222.93,222.9,0.86]
[1759373766355,4.62803464,222.93,222.9,0.2]
[1759373766553,4.62803464,222.93,222.9,0.86]
[1759373768450,0.14216157,222.94,222.9,0.86]
[1759373768653,0.86216157,222.94,222.9,0.86]
[1759373769052,0.72,222.93,222.9,0.2]
[1759373769257,0.14216157,222.93,222.91,0.66]
[1759373769755,7.49580183,222.95,222.9,0.2]
[1759373769963,4.48532208,222.95,222.91,0.66]
[1759373770141,4.48532208,222.95,222.92,0.66]
[1759373771237,3.01047975,222.97,222.93,0.66]
[1759373771454,21.80432314,222.96,222.9,0.2]
[1759373771649,1.5178592,222.94,222.9,0.2]
[1759373771962,0.72,222.94,222.9,0.2]
[1759373772445,4.485713,222.93,222.9,0.86]
[1759373772638,28.5800178,222.96,222.91,0.66]
[1759373772841,0.28432314,222.97,222.91,0.66]
[1759373773956,4.76923769,222.97,222.91,5.14606703]
[1759373774158,4.76923769,222.97,222.92,0.66]
[1759373774463,4.76923769,222.97,222.93,0.66]
[1759373774761,4.76923769,222.97,222.94,0.66]
[1759373774950,5.48923769,222.97,222.92,0.66]
[1759373775264,5.48923769,222.97,222.93,0.66]
[1759373775443,3.01872133,222.98,222.93,0.66]
[1759373775644,26.0045901,222.99,222.93,0.66]
[1759373777164,4.48289774,223.07,222.93,5.14556549]
[1759373777460,0.72,223.03,222.94,32.6]
[1759373777772,0.72,223.03,222.9,0.86]
[1759373777773,1.5178592,222.97,222.9,0.86]
[1759373778061,4.4853106,222.95,222.91,31.94]
[1759373778272,4.4853106,222.95,222.92,0.66]
[1759373779165,5.2053106,222.95,222.91,31.94]
[1759373779851,5.2053106,222.95,222.91,32.6]
[1759373780167,0.72,222.97,222.92,0.66]
[1759373780352,0.72,222.97,222.91,31.94]
[1759373780353,0.72,222.97,222.93,0.66]
[1759373780560,5.20494155,222.97,222.93,0.66]
[1759373781064,0.72,222.96,222.92,31.94]
[1759373781237,0.72,222.96,222.92,32.65]
[1759373781639,4.48494155,222.97,222.92,32.65]
[1759373781962,0.69,222.97,222.93,0.71]
[1759373782266,5.17510943,222.96,222.92,31.94]
[1759373782460,0.69,222.95,222.92,31.94]
[1759373782663,4.48510943,222.96,222.92,32.65]
[1759373782856,5.17510943,222.96,222.92,32.65]
[1759373783565,4.48510943,222.96,222.92,31.94]
[1759373784072,5.15510943,222.96,222.92,32.6]
[1759373785477,4.62706985,222.97,222.93,0.66]
[1759373785771,5.29706985,222.97,222.93,0.66]
[1759373786278,4.62706985,222.97,222.92,31.94]
[1759373786469,0.67,222.96,222.92,31.94]
[1759373786653,5.15525725,222.96,222.92,32.6]
[1759373787557,5.15430493,223.0,222.92,36.42584314]
[1759373787863,0.95432314,222.99,222.93,0.66]
[1759373788062,2.47218234,222.99,222.9,79.4]
[1759373788376,0.67,222.98,222.93,31.92]
[1759373788582,1.80218234,222.99,222.93,31.92]
[1759373788762,0.67,222.97,222.93,31.92]
[1759373788950,0.67,222.96,222.93,31.92]
[1759373789574,0.67,222.98,222.93,32.58]
[1759373789778,0.67,222.97,222.93,32.58]
[1759373789977,4.48470714,222.98,222.93,31.92]
[1759373790167,0.67,222.96,222.93,31.92]
[1759373790677,5.15470714,222.98,222.94,0.66]
[1759373791459,5.15470714,222.98,222.93,32.58]
[1759373791669,5.15470714,222.98,222.93,31.92]
[1759373791879,5.15470714,222.98,222.94,0.66]
[1759373792463,0.67,222.97,222.93,31.92]
[1759373792785,0.67,222.97,222.93,32.58]
[1759373793162,4.48470714,222.98,222.94,0.66]
[1759373793373,5.15470714,222.98,222.94,0.66]
[1759373794698,0.28432314,222.99,222.94,0.66]
[1759373795285,0.67,222.99,222.95,0.66]
[1759373795470,0.67,222.99,222.96,31.9]
[1759373795867,4.48470714,222.98,222.96,31.9]
[1759373796483,4.48470714,222.98,222.96,32.56]
[1759373797688,0.14216157,223.0,222.96,31.9]
[1759373797886,4.48430493,223.0,222.97,0.66]
[1759373798390,4.48418567,223.01,222.96,31.9]
[1759373798589,4.48390063,223.03,222.98,0.66]
[1759373798890,4.48390063,223.03,222.99,0.66]
[1759373799190,4.48390063,223.03,223.0,0.66]
[1759373799867,0.67,223.04,223.0,0.66]
[1759373800083,4.48358766,223.04,223.0,31.9]
[1759373800392,4.48358766,223.04,223.01,0.66]
[1759373801474,4.76756325,223.06,223.02,0.66]
[1759373801792,5.43756325,223.06,223.02,0.66]
[1759373802182,5.15324011,223.06,223.02,0.66]
[1759373802367,4.48324011,223.06,223.03,0.66]
[1759373802689,4.76722088,223.07,223.03,0.66]
[1759373803098,5.43722088,223.07,223.03,0.66]
[1759373803281,0.67,223.06,223.01,0.66]
[1759373803480,4.76722088,223.07,223.01,0.66]
[1759373803783,4.76722088,223.07,223.01,5.14402234]
[1759373803984,4.76722088,223.07,223.02,0.66]
[1759373804799,4.44340167,223.08,223.02,5.14387914]
[1759373804994,3.77340167,223.08,223.03,0.66]
[1759373805184,3.77340167,223.08,223.04,31.88]
[1759373805488,21.47,223.1,223.05,0.66]
[1759373805794,5.0190934,223.14,223.04,31.88]
[1759373805795,8.92541368,223.12,223.06,0.66]
[1759373805967,5.15201201,223.12,223.06,0.66]
[1759373806974,5.15201201,223.12,223.06,5.14307978]
[1759373807285,5.15201201,223.12,223.07,0.66]
[1759373807475,5.15201201,223.12,223.08,32.54]
[1759373807672,4.48201201,223.12,223.08,32.54]
[1759373807872,4.48201201,223.12,223.09,0.66]
[1759373808294,0.67,223.11,223.08,31.88]
[1759373808697,4.48201201,223.12,223.09,0.66]
[1759373809009,9.48754245,223.13,223.08,31.88]
[1759373809298,9.48754245,223.13,223.1,0.66]
[1759373809795,9.48754245,223.13,223.08,32.54]
[1759373809796,10.15754245,223.13,223.08,32.54]
[1759373809984,10.15754245,223.13,223.09,0.66]
[1759373810696,9.48754245,223.13,223.08,31.88]
[1759373810902,9.48754245,223.13,223.09,0.66]
[1759373811079,9.48754245,223.13,223.1,0.66]
[1759373813679,9.48754245,223.13,223.08,115.56267652]
[1759373813680,0.67,223.12,223.08,79.2]
[1759373813896,0.67,223.11,223.1,31.86]
[1759373815712,9.48754245,223.13,223.1,31.86]
[1759373815890,9.48754245,223.13,223.1,32.54]
[1759373816197,12.67865755,223.18,223.1,32.54]
[1759373816198,0.2,223.19,223.11,0.68]
[1759373816405,0.87,223.19,223.11,0.68]
[1759373816705,21.67,223.19,223.11,0.68]
[1759373817074,26.15067935,223.19,223.11,5.16194223]
[1759373817298,26.15067935,223.19,223.12,0.68]
[1759373818303,0.2,223.19,223.12,5.16186933]
[1759373818599,0.2,223.19,223.13,21.48]
[1759373818788,0.2,223.19,223.14,31.86]
[1759373819098,0.2,223.19,223.14,32.54]
[1759373819406,0.2,223.19,223.15,0.68]
[1759373820604,0.2,223.19,223.15,5.16127999]
[1759373820880,0.2,223.19,223.16,0.68]
[1759373821105,0.2,223.19,223.16,32.52]
[1759373821278,0.2,223.19,223.17,31.84]
[1759373821481,0.67,223.18,223.12,0.68]
[1759373821786,0.67,223.18,223.13,31.84]
[1759373822094,0.67,223.18,223.13,32.52]
[1759373822693,5.15073155,223.18,223.14,0.68]
[1759373822898,0.67,223.17,223.13,31.84]
[1759373823111,0.67,223.16,223.13,31.84]
[1759373823381,5.15073155,223.18,223.13,31.84]
[1759373823604,0.67,223.17,223.13,32.52]
[1759373823997,0.2,223.19,223.14,0.68]
[1759373823998,0.87,223.19,223.14,0.68]
[1759373824506,0.87,223.19,223.15,31.84]
[1759373824688,5.35058709,223.19,223.15,31.84]
[1759373824883,5.35058709,223.19,223.16,31.84]
[1759373825078,0.2,223.19,223.12,79.2]
[1759373825397,0.2,223.19,223.17,0.68]
[1759373825602,0.2,223.19,223.18,31.84]
[1759373825901,0.2,223.19,223.18,32.52]
[1759373827605,0.2,223.19,223.14,4.48129899]
[1759373827803,0.67,223.18,223.15,31.84]
[1759373828009,0.67,223.17,223.15,31.84]
[1759373828219,0.2,223.19,223.15,31.84]
[1759373828411,0.2,223.19,223.16,0.68]
[1759373828990,0.2,223.19,223.15,31.84]
[1759373829328,5.35060492,223.19,223.15,31.84]
[1759373829484,0.87,223.19,223.15,32.52]
[1759373829690,0.2,223.19,223.15,32.52]
[1759373829922,0.2,223.19,223.16,0.68]
[1759373830526,0.2,223.19,223.16,79.88]
[1759373830693,0.2,223.19,223.17,0.68]
[1759373831221,0.2,223.19,223.18,4.48068823]
[1759373831424,0.2,223.19,223.18,5.16068823]
[1759373831596,0.2,223.19,223.18,31.82]
[1759373832612,0.2,223.19,223.18,111.7]
[1759373833003,0.2,223.19,223.18,115.35765885]
[1759373833410,0.2,223.19,223.18,119.83834708]
[1759373833911,0.2,223.2,223.18,119.83834708]
[1759373834114,0.2,223.2,223.19,11.55647521]
[1759373834417,8.71023609,223.29,223.19,11.55647521]
[1759373834589,8.71023609,223.29,223.22,20.8]
[1759373834785,8.71023609,223.29,223.23,31.82]
[1759373835221,8.71023609,223.29,223.24,0.68]
[1759373835413,8.71023609,223.29,223.25,0.68]
[1759373835717,9.38023609,223.29,223.26,31.82]
[1759373836019,8.71023609,223.29,223.26,31.82]
[1759373836719,9.38023609,223.29,223.26,31.82]
[1759373837504,0.67,223.28,223.22,100.68]
[1759373837709,0.67,223.28,223.23,31.8]
[1759373838112,0.67,223.27,223.24,31.8]
[1759373838313,13.18873745,223.29,223.24,31.8]
[1759373838550,0.67,223.27,223.24,31.8]
[1759373839519,0.2,223.31,223.25,0.68]
[1759373840911,0.2,223.31,223.25,79.88]
[1759373841226,4.67808,223.31,223.25,79.88]
[1759373841601,4.67808,223.31,223.26,31.8]
[1759373841825,5.36808,223.31,223.26,32.46]
[1759373842006,0.2,223.31,223.27,0.66]
[1759373844641,0.88,223.31,223.27,0.66]
[1759373845009,0.88,223.31,223.28,31.8]
[1759373845209,0.2,223.31,223.28,32.52]
[1759373848520,0.2,223.31,223.28,31.8]
[1759373849234,0.2,223.31,223.29,0.72]
[1759373849435,0.2,223.31,223.29,79.2]
[1759373850133,0.2,223.31,223.3,31.78]
[1759373850803,0.2,223.31,223.3,111.7]
[1759373851732,0.2,223.31,223.3,110.98]
[1759373852833,0.2,223.31,223.3,79.2]
[1759373853038,0.2,223.31,223.3,110.98]
[1759373855312,0.2,223.31,223.3,79.2]
[1759373855518,18.91810345,223.31,223.24,79.2]
[1759373855716,3.04482417,223.3,223.25,31.78]
[1759373855927,0.68,223.29,223.25,31.78]
[1759373856444,0.68,223.28,223.25,31.78]
[1759373856636,0.68,223.27,223.26,31.78]
[1759373857033,4.47900771,223.27,223.24,79.2]
[1759373857245,4.47900771,223.27,223.25,31.78]
[1759373857541,5.15900771,223.27,223.25,31.78]
[1759373857733,4.47900771,223.27,223.25,31.78]
[1759373858831,4.47868147,223.28,223.24,79.2]
[1759373859028,5.15868147,223.28,223.24,79.2]
[1759373859227,0.88,223.31,223.25,32.48]
[1759373859750,5.35809172,223.31,223.25,32.48]
[1759373862932,5.35809172,223.31,223.25,0.72]
[1759373863121,5.35809172,223.31,223.26,31.76]
[1759373863340,5.35809172,223.31,223.26,32.48]
[1759373863538,4.67809172,223.31,223.27,0.72]
[1759373863723,4.67809172,223.31,223.28,32.48]
[1759373864124,4.67809172,223.31,223.24,79.2]
[1759373864125,0.68,223.3,223.29,31.76]
[1759373864320,0.68,223.3,223.25,79.2]
[1759373864542,0.68,223.29,223.26,31.76]
[1759373864820,0.68,223.28,223.26,31.76]
[1759373865028,0.68,223.27,223.26,31.76]
[1759373865225,0.68,223.27,223.25,79.2]
[1759373865444,4.47908268,223.26,223.25,79.2]
[1759373865657,0.2,223.31,223.25,79.2]
[1759373865658,0.68,223.3,223.25,111.68]
[1759373865840,4.67809624,223.31,223.26,0.72]
[1759373866029,4.67809624,223.31,223.27,31.76]
[1759373866231,0.2,223.31,223.28,0.72]
[1759373866438,0.2,223.31,223.29,31.76]
[1759373866635,0.2,223.31,223.3,0.72]
[1759373868136,0.2,223.31,223.3,5.19828034]
[1759373868534,0.2,223.31,223.3,0.72]
[1759373869335,0.2,223.31,223.3,5.19828034]
[1759373870529,0.2,223.31,223.3,6.99115813]
[1759373871046,0.2,223.37,223.33,20.8]
[1759373871350,0.2,223.37,223.34,31.76]
[1759373871528,0.2,223.37,223.35,4.47727781]
[1759373871845,0.2,223.37,223.36,31.76]
[1759373872150,0.2,223.37,223.36,32.48]
[1759373873149,0.2,223.37,223.36,36.23707736]
[1759373873354,0.2,223.37,223.36,36.95707736]
[1759373873929,0.2,223.37,223.36,116.15707736]
[1759373874331,0.2,223.37,223.36,36.95707736]
[1759373875047,0.2,223.37,223.36,38.74947312]
[1759373876084,0.2,223.37,223.36,38.72947312]
[1759373876245,0.2,223.37,223.36,36.93707736]
[1759373876446,0.2,223.37,223.36,38.72947312]
[1759373878262,0.1,223.41,223.39,20.8]
[1759373878435,0.2,223.42,223.4,31.74]
[1759373878635,0.2,223.42,223.4,32.45]
[1759373878834,0.2,223.42,223.41,0.71]
[1759373879158,0.2,223.42,223.41,2.50199426]
[1759373880236,0.2,223.42,223.41,6.97806963]
[1759373881944,0.7,223.49,223.44,20.8]
[1759373882142,0.7,223.5,223.45,31.74]
[1759373882652,0.7,223.49,223.45,31.74]
[1759373883356,0.7,223.49,223.46,4.47507383]
[1759373884157,4.47389893,223.52,223.46,4.47507383]
[1759373884465,0.7,223.5,223.46,4.47507383]
[1759373885467,0.7,223.5,223.46,83.67507383]
[1759373887759,0.8,223.47,223.46,79.2]
[1759373888352,0.8,223.47,223.46,110.92]
[1759373890763,0.1,223.47,223.46,110.92]
[1759373891172,0.1,223.47,223.46,115.39507383]
[1759373893966,0.1,223.47,223.46,116.10507383]
[1759373895554,0.2,223.54,223.46,127.29275842]
[1759373895754,0.9,223.54,223.49,20.8]
[1759373896061,0.9,223.54,223.5,31.7]
[1759373896267,0.9,223.54,223.5,32.41]
[1759373897172,0.2,223.54,223.5,31.7]
[1759373897476,0.7,223.53,223.5,36.17425676]
[1759373897675,0.2,223.54,223.5,115.37425676]
[1759373897873,0.2,223.54,223.5,116.08425676]
[1759373899261,0.9,223.54,223.5,116.08425676]
[1759373899755,0.7,223.53,223.5,110.9]
[1759373900279,0.7,223.53,223.51,31.7]
[1759373901463,4.67349113,223.54,223.5,79.2]
[1759373901664,0.69,223.52,223.51,31.7]
[1759373902284,0.69,223.53,223.51,31.7]
[1759373902464,4.67349113,223.54,223.51,31.7]
[1759373902465,0.2,223.54,223.51,31.7]
[1759373902671,0.89,223.54,223.51,31.7]
[1759373903983,0.2,223.54,223.51,31.7]
[1759373904184,0.9,223.54,223.51,31.7]
[1759373904679,0.2,223.54,223.52,0.71]
[1759373904982,0.2,223.54,223.53,31.68]
[1759373905753,0.2,223.54,223.53,32.39]
[1759373905958,0.2,223.54,223.53,111.59]
[1759373906171,0.1,223.57,223.53,111.59]
[1759373906371,0.1,223.57,223.54,0.71]
[1759373906575,0.1,223.57,223.55,36.15327219]
[1759373906783,0.1,223.57,223.56,0.71]
[1759373907877,1e-08,223.6,223.56,53.28647521]
[1759373908076,0.1,223.66,223.65,20.8]
[1759373908386,0.1,223.66,223.65,52.48]
[1759373908575,0.1,223.66,223.65,68.53774728]
[1759373908758,0.1,223.66,223.65,70.32773676]
[1759373909185,0.1,223.66,223.65,27.77126155]
[1759373909480,0.1,223.66,223.65,70.32773676]
[1759373909670,0.1,223.66,223.65,73.84249704]
[1759373911177,0.1,223.7,223.66,10.87647521]
[1759373911487,0.1,223.7,223.69,20.8]
[1759373911686,0.1,223.7,223.69,52.48]
[1759373911889,0.1,223.7,223.69,53.19]
[1759373912284,0.1,223.7,223.69,57.66047252]
[1759373912471,0.1,223.7,223.69,53.19]
[1759373912679,0.1,223.7,223.69,31.66]
[1759373912680,0.8,223.7,223.69,31.66]
[1759373912883,0.8,223.7,223.67,20.8]
[1759373913083,0.7,223.69,223.67,20.8]
[1759373913481,0.7,223.69,223.68,31.66]
[1759373913801,0.1,223.7,223.62,4.47169496]
[1759373913802,0.7,223.68,223.62,4.47169496]
[1759373914162,0.7,223.68,223.66,20.8]
[1759373914477,0.7,223.68,223.67,31.66]
[1759373915301,0.1,223.7,223.65,20.8]
[1759373915475,0.1,223.7,223.66,31.66]
[1759373915789,0.1,223.7,223.69,20.8]
[1759373915992,0.1,223.7,223.69,65.76143282]
[1759373916289,0.1,223.7,223.69,66.47143282]
[1759373917785,0.1,223.7,223.69,70.94190534]
[1759373918567,0.1,223.7,223.69,57.64047252]
[1759373919099,0.1,223.7,223.69,71.31478003]
[1759373919792,0.1,223.7,223.69,39.65478003]
[1759373919991,0.1,223.7,223.69,71.31478003]
[1759373920888,0.1,223.7,223.69,71.29478003]
[1759373921889,0.8,223.7,223.69,79.2]
[1759373922089,0.8,223.7,223.69,110.84]
[1759373922395,0.1,223.7,223.69,31.64]
[1759373923294,0.1,223.7,223.66,0.71]
[1759373923295,0.8,223.7,223.66,4.4709001]
[1759373923601,0.1,223.7,223.67,36.11085654]
[1759373924906,0.8,223.7,223.67,36.11080984]
[1759373925932,0.7,223.69,223.67,31.64]
[1759373926209,0.1,223.7,223.67,31.64]
[1759373926431,0.1,223.7,223.67,4.47082569]
[1759373926638,0.7,223.69,223.68,31.64]
[1759373927682,0.1,223.7,223.67,4.4708553]
[1759373927988,0.7,223.69,223.68,31.64]
[1759373928405,0.7,223.69,223.66,20.8]
[1759373928684,0.7,223.68,223.67,31.64]
[1759373929921,20.7,223.68,223.65,31.64]
[1759373930117,0.7,223.67,223.65,31.64]
[1759373930494,0.7,223.66,223.65,31.64]
[1759373930695,20.0,223.65,223.62,31.64]